Cogmind - Beta 15 @@@ ROGUE MODE // 2025.08.02 @ 15:44:16 Player: beans Result: Destroyed by D-53 Grenadier with Mini Grenade Launcher Performance ------------- Evolutions (0) 0 Regions Visited (2) 400 Robots Destroyed (10) 50 Value Destroyed (105) 105 Prototype IDs (0) 0 Alien Tech Used (0) 0 Bonus (-22) -22 TOTAL SCORE: 533 Bonus ------- Friendly Fire -22 Cogmind --------- Core Integrity 0/250 Matter 200/300 Energy 100/100 System Corruption 0% Temperature Cool (0) Movement Core (350) Ox6 Location -10/Mines Parts ------- > --- POWER (1) -------- (None) > --- PROPULSION (2) --- (None) > --- UTILITY (2) ------ Large Storage Unit > --- WEAPON (2) ------- (None) > --- INVENTORY (15) --- Fission Core Peak State ------------ > --- POWER ------------ Light Ion Engine > --- PROPULSION ------- Light Treads Light Treads > --- UTILITY ---------- Cargo Storage Unit > --- WEAPON ----------- Medium Laser Grenade Launcher > --- INVENTORY -------- (None) [Rating: 7] Favorites ----------- Power Light Ion Engine Engine Light Ion Engine Propulsion Light Treads Treads Light Treads Utility Large Storage Unit Storage Large Storage Unit Weapon Medium Laser Energy Gun Medium Laser Launcher Grenade Launcher Build | -11 -10 -10 ------- Run | Yrd Mat Min Slots Evolved . | . . . Power . | . . . Propulsion . | . . . Utility . | . . . Weapon . | . . . Parts Attached 7 | 4 3 . Power 1 | 1 . . Engine 1 | 1 . . Core . | . . . Reactor . | . . . Propulsion 2 | 2 . . Treads 2 | 2 . . Leg . | . . . Wheel . | . . . Hover . | . . . Flight . | . . . Utility 2 | . 2 . Device . | . . . Storage 2 | . 2 . Processor . | . . . Hackware . | . . . Protection . | . . . Artifact . | . . . Weapon 2 | 1 1 . Energy Gun 1 | 1 . . Energy Cannon . | . . . Ballistic Gun . | . . . Ballistic Cannon . | . . . Launcher 1 | . 1 . Special Weapon . | . . . Impact Weapon . | . . . Slashing Weapon . | . . . Piercing Weapon . | . . . Special Melee Weapon . | . . . Unidentified Prototypes . | . . . Parts Lost 5 | . . 5 Power 1 | . . 1 Propulsion 2 | . . 2 Utility . | . . . Weapon 2 | . . 2 Highest Loss Streak 5 | . . 5 To Critical Strikes . | . . . Average Backups . | . . . Power . | . . . Propulsion . | . . . Utility . | . . . Weapon . | . . . Tool/Special . | . . . Unused Backups . | . . . Power . | . . . Propulsion . | . . . Utility . | . . . Weapon . | . . . Tool/Special . | . . . Average Slot Usage (%) 79 | . 79 77 Engine 13 | . 14 12 Treads 27 | . 28 27 Storage 12 | . 12 14 Energy Gun 13 | . 14 12 Launcher 11 | . 10 11 Peak Build Rating 7 | 4 7 6 Average Rating 5 | 3 5 5 On Entrance 3 | . 4 6 Naked Turns . | . . . Heaviest Build 148 | 5 148 28 Greatest Support 40 | 40 40 40 Greatest Overweight (x) 6 | . 3 6 Average Overweight (x) . | . . . Largest Inventory Capacity 30 | 5 30 15 Average Capacity 14 | 5 16 15 Most Carried 3 | 3 2 1 Average Carried . | . . . Final Capacity 15 | 5 15 15 Final Carried 1 | . . 1 Class Distribution -------------------- 94% | Mutant 5% | Hauler-Mutant Dominant Class ---------------- Mutant | -10/Materials Mutant | -10/Mines Resources | -11 -10 -10 ----------- Run | Yrd Mat Min Matter Collected 357 | 240 97 20 Remotely . | . . . Salvage Created 226 | . 189 37 Parts 20 | . 20 . Haulers Intercepted . | . . . Recyclers Shooed . | . . . Parts Field Recycled . | . . . Retrieved Matter . | . . . Parts Self-Destructed . | . . . Prevented . | . . . Kills | -11 -10 -10 ------- Run | Yrd Mat Min Combat Hostiles Destroyed 11 | . 1 10 AOE 11 | . 1 10 Classes Destroyed 6 | . 5 1 Worker 2 | . 2 . Builder 3 | . 3 . Recycler 2 | . 2 . Watcher 2 | . 2 . Grunt 1 | . 1 . Assembled 10 | . . 10 Best Kill Streak 10 | . 4 10 Combat Bots Only 10 | . 1 10 Max Kills in Single Turn 7 | . 3 7 Gunslinging . | . . . Exploded 7 | . 1 7 Melee . | . . . Uniques/NPCs Destroyed . | . . . Combat | -11 -10 -10 -------- Run | Yrd Mat Min Hostile Shots Fired 49 | . 8 41 Missed 14 | . 5 9 Hits 35 | . 3 32 Projectile 35 | . 3 32 AOE 6 | . . 6 Critical Strikes 1 | . . 1 Part Disruptions 1 | . . 1 Damage Taken 744 | . 101 643 Core 260 | . . 260 Absorbed by Shields . | . . . Core Remaining (%) 100 | 100 . . Volleys Fired 24 | . 19 5 Largest 2 | . 2 2 Hottest 80 | . 80 80 Shots Fired 45 | . 38 7 Gun 24 | . 19 5 Cannon . | . . . Launcher 21 | . 19 2 Special . | . . . Kinetic . | . . . Thermal 24 | . 19 5 Explosive 21 | . 19 2 Electromagnetic . | . . . Robot Hit Streak 4 | . 4 3 Robot Miss Streak 2 | . 2 1 Penetration Max . | . . . Secondary Targets . | . . . Shots Hit Robots 16 | . 13 3 Core Hits 45 | . 18 27 Critical Kills . | . . . Critical Parts Destroyed . | . . . Critical Strikes . | . . . Melee Attacks . | . . . Impact . | . . . Slashing . | . . . Piercing . | . . . Sneak Attacks . | . . . Combat Hostiles . | . . . Follow-up Attacks . | . . . Damage Inflicted 1696 | . 843 853 Guns 114 | . 75 39 Cannons . | . . . Explosions 1582 | . 768 814 Melee . | . . . Ramming . | . . . Kinetic . | . . . Thermal 114 | . 75 39 Explosive 1582 | . 768 814 Electromagnetic . | . . . Impact . | . . . Slashing . | . . . Piercing . | . . . Highest Corruption . | . . . Average Corruption . | . . . Corruption Purged . | . . . Corruption Blocked . | . . . Overload Shots . | . . . Overflow Damage 34 | . 25 9 Projectiles . | . . . Explosions 34 | . 25 9 Melee . | . . . Knockbacks . | . . . Impact . | . . . Kinetic . | . . . Secondary . | . . . Self-Inflicted Damage 72 | . 72 . Shots 5 | . 5 . Rammed 2 | . . 2 Targets Rammed 2 | . . 2 Kicked . | . . . Crushed . | . . . Highest Temperature 114 | . 114 68 Average Temperature 37 | . 40 29 Received Heat Transfer 107 | . 18 89 Siege Activations . | . . . Martial Activations . | . . . Shielding Activations . | . . . Robots Disrupted . | . . . Combat Hostiles . | . . . Robots Corrupted . | . . . Combat Hostiles . | . . . Parts Fried . | . . . Impact Corruptions . | . . . Robots Melted . | . . . Combat Hostiles . | . . . Parts Melted . | . . . Heat Transferred 333 | . 222 111 Parts Sabotaged . | . . . Parts Stolen . | . . . Parts Stripped . | . . . Power Chain Reactions . | . . . Alert | -11 -10 -10 ------- Run | Yrd Mat Min Maximum Alert Level . | . . . Low Security (%) 100 | 100 100 100 Level 1 . | . . . Level 2 . | . . . Level 3 . | . . . Level 4 . | . . . Level 5 . | . . . High Security . | . . . Max Security . | . . . Peak Influence 102 | . 102 35 Initial 35 | . . 35 Average 26 | . 46 10 Influence Increases 177 | . 172 5 Destroy 0b10 Robot/C 20 | . 20 . Destroy 0b10 Robot/NC 45 | . 45 . Destroy Leader 14 | . 14 . Disable Machine 15 | . 15 . Destroy Structure 83 | . 78 5 Influence Decreases 177 | . 80 97 Entered New Map 57 | . . 57 Time Decay 115 | . 80 35 Lost Part 5 | . . 5 Squads Dispatched 2 | . 2 . Investigation . | . . . Extermination . | . . . Reinforcement 2 | . 2 . Assault . | . . . Garrison . | . . . Intercept . | . . . Searches Triggered . | . . . Construction Impeded . | . . . Haulers Reinforced . | . . . Active Scanning Responses . | . . . Cargo Convoy Interrupts . | . . . Stealth | -11 -10 -10 --------- Run | Yrd Mat Min Distress Signals . | . . . Communications Jammed . | . . . Distress Signals . | . . . Times Spotted 26 | . 6 20 Peak Tracking Total 18 | . 2 18 Tactical Retreats 1 | . . 1 Traps | -11 -10 -10 ------- Run | Yrd Mat Min Traps Triggered . | . . . Indirectly . | . . . Trap Hack Attempts . | . . . Triggered . | . . . Disarmed . | . . . Reprogrammed . | . . . Reused . | . . . Traps Extracted . | . . . Installed . | . . . Triggered . | . . . Machines | -11 -10 -10 ---------- Run | Yrd Mat Min Machines Disabled 3 | . 3 . Max in Single Turn 2 | . 2 . Machines Repaired . | . . . Machines Dismantled . | . . . Machines Sabotaged . | . . . Overloaded Fab Kills . | . . . Hacking | -11 -10 -10 --------- Run | Yrd Mat Min Machines Accessed . | . . . Terminals . | . . . Fabricators . | . . . Repair Stations . | . . . Recycling Units . | . . . Scanalyzers . | . . . Garrison Access . | . . . Total Hacks . | . . . Successful . | . . . Failed . | . . . Catastrophic . | . . . Database Lockouts . | . . . Manual . | . . . Terminals . | . . . Fabricators . | . . . Repair Stations . | . . . Recycling Units . | . . . Scanalyzers . | . . . Garrison Access . | . . . Terminal Hacks . | . . . Fabricator Hacks . | . . . Repair Station Hacks . | . . . Recycling Unit Hacks . | . . . Scanalyzer . | . . . Garrison Access Hacks . | . . . Unauthorized Hacks . | . . . Terminals . | . . . Fabricators . | . . . Repair Stations . | . . . Recycling Units . | . . . Scanalyzers . | . . . Garrison Access . | . . . Data Cores Recovered . | . . . Used . | . . . Hacking Detections . | . . . Full Trace Events . | . . . Feedback Events . | . . . Feedback Blocked . | . . . Robot Schematics Acquired . | . . . Robots Built . | . . . Authchips . | . . . Time . | . . . Total Robot Build Rating . | . . . Part Schematics Acquired . | . . . Parts Built . | . . . Authchips . | . . . Time . | . . . Total Part Build Rating . | . . . Parts Repaired . | . . . Time . | . . . Parts Recycled . | . . . Recycled Matter . | . . . Retrieved Matter . | . . . Retrieved Components . | . . . Parts Scanalyzed . | . . . Part Schematics Acquired . | . . . Parts Damaged . | . . . Bothacking | -11 -10 -10 ------------ Run | Yrd Mat Min Used RIF Installer . | . . . Robots Hacked . | . . . Non-combat . | . . . Combat . | . . . Robot Hacks Applied . | . . . Relay Couplers Released . | . . . Fabnet Peak Effective % . | . . . Robots Rewired . | . . . Allies Hacked . | . . . Hacks Repelled . | . . . Allies | -11 -10 -10 -------- Run | Yrd Mat Min Total Allies 3 | . . 3 Largest Group 3 | . . 3 Highest-Rated Group 40 | . . 40 Highest-Rated Ally 16 | . . 16 Total Orders . | . . . Ally Attacks 23 | . . 23 Total Damage 243 | . . 243 Kills 5 | . . 5 Allies Corrupted . | . . . Allies Melted . | . . . Intel | -11 -10 -10 ------- Run | Yrd Mat Min Active Infowar (turns) . | . . . Robot Analysis Total . | . . . Derelict Logs Recovered 1 | . . 1 Drone Launches . | . . . Drone Recoveries . | . . . Exploration | -11 -10 -10 ------------- Run | Yrd Mat Min Turns Passed 433 | 73 210 150 Spaces Moved 214 | 52 80 82 Core 17 | 16 . 1 Treads 197 | 36 80 81 Legs . | . . . Wheels . | . . . Hover . | . . . Flight . | . . . Fastest Speed 50 | 50 160 160 Average Speed 158 | 126 175 162 Slowest Speed 400 | 160 400 350 Overloaded Moves . | . . . Propulsion Burnouts . | . . . Robots Hopped . | . . . Potential Cave-ins . | . . . Cave-ins Triggered . | . . . Exploration Rate (%) 15 | 5 20 22 Regions Visited 2 Branch Regions 1 Pre-discovered Areas 1 | . . 1 Known Exits Taken . | . . . Unknown Exits Taken 2 | 1 1 . Scrap Searched . | . . . Spaces Dug 7 | . 7 . Terrain Destroyed 91 | . 86 5 Melee . | . . . Projectile . | . . . AOE 91 | . 86 5 Terrain Rammed . | . . . Walls Destroyed . | . . . Machines Disabled . | . . . Actions | -11 -10 -10 --------- Run | Yrd Mat Min Total 263 | 60 113 90 Wait 6 | 1 5 . Move 212 | 51 79 82 Hop . | . . . Pick Up 9 | 4 4 1 Fast Attach . | . . . Attach 8 | 4 4 . Detach . | . . . Swap . | . . . Drop 2 | . 2 . Fire 24 | . 19 5 Melee . | . . . Ram . | . . . Kick . | . . . Crush 2 | . . 2 Escape Stasis . | . . . Rewire . | . . . Trap . | . . . Miscellaneous . | . . . Route ------- -11/Scrapyard -10/Materials -10/Mines History --------- Turn | Location | Event 2 | -11/Scrapyard | Met Revision 17 11 | -11/Scrapyard | Discovered new exit (range 16) 74 | -11/Scrapyard | Entered Materials 212 | -10/Materials | Discovered new exit (range 13) 284 | -10/Materials | Entered Mines 302 | -10/Mines | Assisted by bots powering up and referring to "LRC-V3" 337 | -10/Mines | Met a Derelict bent on vengeance 369 | -10/Mines | Assembled infested the area 374 | -10/Mines | Assisted by a Guerilla fighting off Assembled 390 | -10/Mines | Learned location of Zion (-7) 419 | -10/Mines | Destroyed 10 combat bots 431 | -10/Mines | Core integrity fell below 50% 433 | -10/Mines | Core integrity fell below 20% 434 | -10/Mines | Destroyed by D-53 Grenadier with Mini Grenade Launcher Last Messages --------------- D-53 Grenadier unfolds itself. U-05 Engineer lays Concrete. R-06 Scavenger collects Lgt. Nuclear Core. U-05 Engineer lays Concrete. Acquired 12 matter. R-06 Scavenger collects Imp. Heat Sink. as-19880 destroyed. Lgt. Treads destroyed. U-05 Engineer lays Concrete. R-06 Scavenger destroyed. Mercenary 1a destroyed. U-05 Engineer lays Concrete. R-06 Scavenger collects Imp. Heat Sink. U-05 Engineer lays Concrete. Trooper 1b destroyed. Lgt. Treads destroyed. U-05 Engineer lays Concrete. R-06 Scavenger destroyed. The unstable cave ceiling collapses. U-05 Engineer lays Concrete. Map ----- +----------------------------------------------------+ | | | | | | | | | | | ?????????????????????????????????????????????? | | ?????????????????????????????????????????????? | | ???????????????????????????????????####??????? | | ??????????????????????????????????## ##?????? | | ??????????????????????????????????# ####### | | ??????????????????????????????????# # | | ????????????????????????????####### | | ???????????????????????????## ## #### | | ?????????????????????####### ###??## | | ?????????????????????# ##?????## | | ?????????????????????# ##???????### | | ?????????????????????#g###### ##??????????? | | ?????????????????????# #????## ##???????????? | | ?????????????????????# #?????####????????????? | | ?????????????????????# #?????????????????????? | | ?????????????????##### ###???????????????????? | | ?????????????????# # ##??????????????????? | | ????????????????## #??????????????????? | | ????????????????# #??????????????????? | | ????????????????## #??????????????????? | | ???????????# ## @ #??????????????????? | | ??????????# ##??????????????????? | | ?????????# < =%= #??????????????????? | | ?????????# ## * ##??????????????????? | | ????????????## uud!%! #???????????????????? | | ?????????????# d! #???????????????????? | | ?????????????## ##???????????????????? | | ??????????????# #### ###????????????????????? | | ??????????????# ???# #??????????????????????? | | ?????????????? ???? #??????????????????????? | | ?????????????##????# #??????????????????????? | | ???????????????????# %#??????????????????????? | | ???????????????????# ???????????????????????? | | ???????????????????# ???????????????????????? | | ???????????????????###???????????????????????? | | ?????????????????????????????????????????????? | | ?????????????????????????????????????????????? | | ?????????????????????????????????????????????? | | ?????????????????????????????????????????????? | | ?????????????????????????????????????????????? | | ?????????????????????????????????????????????? | | ?????????????????????????????????????????????? | | ?????????????????????????????????????????????? | | ?????????????????????????????????????????????? | | ?????????????????????????????????????????????? | +----------------------------------------------------+ Best States ------------- Heat Dissipation 25 Energy Generation 10 Energy Capacity 125 Matter Stores 300 Matter Capacity 300 Sight Range 16 Terrain Scan Density 10 Evasion (%) 50 Recoil Reduction 2 Item Schematics ----------------- None Robot Schematics ------------------ None Fabricated ------------ Nothing Repaired ---------- Nothing Alien Tech Used ----------------- None Achievements -------------- None Challenges ------------ None Game ------ Seed ScrapoidDeliveryRipper Manual? 0 Play Time 00:06:22 Cumulative 77.0 hours Start 2025.08.02 @ 11:58:32 End 2025.08.02 @ 15:44:16 Sessions 1 Manual Loads 0 Difficulty Rogue Special Mode None Game No. 311 Rogue 311 Adventurer 0 Explorer 0 Win Type - Total 0 Types 0/0/0/0/0/0/0/0/0/0 Lore% 28 Gallery% 34 Achievement% 28 Wizard Run 0 Options --------- Layout 2 ASCII 0 Keyboard 0 Movement Mouse Keybinds 0 Fullscreen 2 Font 24/Smallcaps Map View 50x44 Zoom Use 0% Tactical HUD 0 Map Filters NONE Filters NONE Steam 1 RUN: 9a28f37f-d6b3-44c2-ad60-1eb8df71fb72